[Event "Live Chess"]
[Site "Chess.com"]
[Date "2023.05.21"]
[Round "-"]
[White "Singapourfeuj"]
[Black "Cimon"]
[Result "1-0"]
[WhiteElo "2197"]
[BlackElo "1844"]
[TimeControl "300"]
[EndTime "7:06:34 PDT"]
[Termination "Singapourfeuj won by resignation"]

1. d4 {[%clk 0:04:57.9]} 1... Nf6 {[%clk 0:04:57]} 2. Nf3 {[%clk 0:04:56.9]}
2... g6 {[%clk 0:04:55.5]} 3. c4 {[%clk 0:04:56]} 3... d6 {[%clk 0:04:54]} 4.
Nc3 {[%clk 0:04:55.4]} 4... Bg7 {[%clk 0:04:52.9]} 5. e4 {[%clk 0:04:54.3]} 5...
O-O {[%clk 0:04:51.8]} 6. Be2 {[%clk 0:04:53.5]} 6... e5 {[%clk 0:04:49.8]} 7.
d5 {[%clk 0:04:51.9]} 7... Nbd7 {[%clk 0:04:48.1]} 8. O-O {[%clk 0:04:49.2]}
8... h6 {[%clk 0:04:45.3]} 9. b4 {[%clk 0:04:47.3]} 9... a5 {[%clk 0:04:42.5]}
10. b5 {[%clk 0:04:44.9]} 10... b6 {[%clk 0:04:40.5]} 11. Be3 {[%clk 0:04:42.1]}
11... Kh7 {[%clk 0:04:29.3]} 12. Rb1 {[%clk 0:04:37.6]} 12... Ng4 {[%clk
0:04:26.4]} 13. Bd2 {[%clk 0:04:34.1]} 13... Nc5 {[%clk 0:04:23.1]} 14. h3
{[%clk 0:04:31.8]} 14... Nf6 {[%clk 0:04:21.3]} 15. Qc2 {[%clk 0:04:30.6]} 15...
Nh5 {[%clk 0:04:10.3]} 16. Be3 {[%clk 0:04:29.3]} 16... Kh8 {[%clk 0:04:06.3]}
17. Nd2 {[%clk 0:04:26.9]} 17... Nf4 {[%clk 0:03:54.6]} 18. Bxf4 {[%clk
0:04:25.8]} 18... exf4 {[%clk 0:03:53.7]} 19. Na4 {[%clk 0:04:24.8]} 19... f5
{[%clk 0:03:48.4]} 20. Nxc5 {[%clk 0:04:22.9]} 20... bxc5 {[%clk 0:03:46.1]} 21.
exf5 {[%clk 0:04:21.9]} 21... Bxf5 {[%clk 0:03:42.1]} 22. Bd3 {[%clk 0:04:21]}
22... Qd7 {[%clk 0:03:31.2]} 23. Bxf5 {[%clk 0:04:18.6]} 23... Rxf5 {[%clk
0:03:28.1]} 24. b6 {[%clk 0:04:16.6]} 24... cxb6 {[%clk 0:03:21.1]} 25. Rxb6
{[%clk 0:04:15]} 25... Raf8 {[%clk 0:03:09.1]} 26. Nf3 {[%clk 0:04:13.3]} 26...
g5 {[%clk 0:03:06.1]} 27. Rfb1 {[%clk 0:04:12]} 27... Qf7 {[%clk 0:02:56.2]} 28.
Rb7 {[%clk 0:04:10.2]} 28... Qh5 {[%clk 0:02:54.5]} 29. Rd7 {[%clk 0:04:03.3]}
29... R5f6 {[%clk 0:02:46.7]} 30. Rbb7 {[%clk 0:04:00.2]} 30... R6f7 {[%clk
0:02:43.1]} 31. Qe4 {[%clk 0:03:51.9]} 31... g4 {[%clk 0:02:24.8]} 32. hxg4
{[%clk 0:03:49.6]} 32... Qxg4 {[%clk 0:02:23.3]} 33. Rxf7 {[%clk 0:03:47.9]} 1-0

[Event "Live Chess"]
[Site "Chess.com"]
[Date "2023.05.21"]
[Round "-"]
[White "ProfPoisson"]
[Black "Dark_Night123"]
[Result "0-1"]
[WhiteElo "1218"]
[BlackElo "1566"]
[TimeControl "300"]
[EndTime "7:07:14 PDT"]
[Termination "Dark_Night123 won by resignation"]

1. e4 {[%clk 0:04:55.5]} 1... e5 {[%clk 0:04:59.2]} 2. Nf3 {[%clk 0:04:53.1]}
2... Nc6 {[%clk 0:04:57.5]} 3. d4 {[%clk 0:04:50.5]} 3... exd4 {[%clk
0:04:56.1]} 4. Bc4 {[%clk 0:04:49.4]} 4... Nf6 {[%clk 0:04:54.5]} 5. Ng5 {[%clk
0:04:44.9]} 5... d5 {[%clk 0:04:50.6]} 6. exd5 {[%clk 0:04:42.6]} 6... Nxd5
{[%clk 0:04:46.8]} 7. Qf3 {[%clk 0:04:40]} 7... Be6 {[%clk 0:04:33.3]} 8. O-O
{[%clk 0:04:33.7]} 8... Be7 {[%clk 0:04:26.1]} 9. Nxe6 {[%clk 0:04:30.3]} 9...
fxe6 {[%clk 0:04:24.2]} 10. Re1 {[%clk 0:04:24.1]} 10... Qd7 {[%clk 0:04:15.7]}
11. Nd2 {[%clk 0:04:06.8]} 11... O-O-O {[%clk 0:04:12.6]} 12. Nb3 {[%clk
0:03:51.5]} 12... Rhf8 {[%clk 0:04:00.9]} 13. Qg4 {[%clk 0:03:39.6]} 13... Bd6
{[%clk 0:03:37.6]} 14. Qxe6 {[%clk 0:03:30.2]} 14... Qxe6 {[%clk 0:03:29.5]} 15.
Rxe6 {[%clk 0:03:27]} 15... Nf4 {[%clk 0:03:28.7]} 16. Bxf4 {[%clk 0:03:15.5]}
16... Bxf4 {[%clk 0:03:26.4]} 17. Re4 {[%clk 0:03:02.4]} 17... Ne5 {[%clk
0:03:16.5]} 18. Be6+ {[%clk 0:02:46.1]} 18... Nd7 {[%clk 0:03:07.6]} 19. Nxd4
{[%clk 0:02:35.4]} 19... Rde8 {[%clk 0:03:02.6]} 20. Bxd7+ {[%clk 0:02:32.2]}
20... Kxd7 {[%clk 0:03:01.4]} 21. Rxe8 {[%clk 0:02:27.7]} 21... Rxe8 {[%clk
0:03:01.3]} 22. g3 {[%clk 0:02:25.3]} 22... Be5 {[%clk 0:02:59.9]} 23. c3 {[%clk
0:02:20.8]} 23... Bxd4 {[%clk 0:02:58.8]} 24. cxd4 {[%clk 0:02:19]} 24... Re2
{[%clk 0:02:58.4]} 25. Rb1 {[%clk 0:02:09.7]} 25... Rd2 {[%clk 0:02:57]} 26. f4
{[%clk 0:02:06.4]} 26... Rxd4 {[%clk 0:02:52.8]} 27. Kf2 {[%clk 0:02:04.9]}
27... Rd2+ {[%clk 0:02:51.9]} 28. Kg1 {[%clk 0:02:02.9]} 28... Kd6 {[%clk
0:02:49.5]} 29. a3 {[%clk 0:01:55.4]} 29... c6 {[%clk 0:02:36.9]} 30. b4 {[%clk
0:01:53.8]} 30... Rd3 {[%clk 0:02:36]} 31. a4 {[%clk 0:01:51.2]} 31... Kd5
{[%clk 0:02:32.6]} 32. Kg2 {[%clk 0:01:46.5]} 32... Kc4 {[%clk 0:02:27.4]} 33.
Kh3 {[%clk 0:01:37.1]} 33... Rb3 {[%clk 0:02:26.1]} 34. Re1 {[%clk 0:01:30.2]}
34... Kxb4 {[%clk 0:02:23]} 35. Re7 {[%clk 0:01:28.5]} 35... Kxa4 {[%clk
0:02:20.6]} 36. Rxg7 {[%clk 0:01:26.7]} 36... c5 {[%clk 0:02:19.9]} 37. Rxh7
{[%clk 0:01:25.2]} 37... c4 {[%clk 0:02:18.6]} 38. Rc7 {[%clk 0:01:23.3]} 38...
c3 {[%clk 0:02:15]} 39. Rc4+ {[%clk 0:01:16]} 39... Kb5 {[%clk 0:02:13.3]} 40.
Re4 {[%clk 0:01:08.2]} 40... Rb4 {[%clk 0:02:09.6]} 41. Re1 {[%clk 0:00:59.7]}
41... c2 {[%clk 0:02:05.6]} 42. Rc1 {[%clk 0:00:58.2]} 42... Rc4 {[%clk
0:01:58.8]} 43. f5 {[%clk 0:00:55.3]} 43... Kb4 {[%clk 0:01:52.1]} 44. f6 {[%clk
0:00:53.4]} 44... Kb3 {[%clk 0:01:51.5]} 45. g4 {[%clk 0:00:38.9]} 45... Kb2
{[%clk 0:01:40.6]} 46. f7 {[%clk 0:00:36.2]} 46... Rf4 {[%clk 0:01:37.2]} 47.
Rg1 {[%clk 0:00:30.6]} 47... Rxf7 {[%clk 0:01:32.5]} 0-1

[Event "Live Chess"]
[Site "Chess.com"]
[Date "2023.05.21"]
[Round "-"]
[White "Ferrarifan27"]
[Black "FailsGambits"]
[Result "1-0"]
[WhiteElo "2055"]
[BlackElo "1328"]
[TimeControl "300"]
[EndTime "7:07:19 PDT"]
[Termination "Ferrarifan27 won by resignation"]

1. e4 {[%clk 0:04:58.7]} 1... e5 {[%clk 0:04:59.1]} 2. Nf3 {[%clk 0:04:56.8]}
2... Nc6 {[%clk 0:04:58.6]} 3. Bb5 {[%clk 0:04:55.4]} 3... a6 {[%clk 0:04:58.3]}
4. Ba4 {[%clk 0:04:53]} 4... Be7 {[%clk 0:04:55.2]} 5. O-O {[%clk 0:04:48.5]}
5... Nf6 {[%clk 0:04:54.7]} 6. Re1 {[%clk 0:04:44.9]} 6... b5 {[%clk 0:04:51.3]}
7. Bb3 {[%clk 0:04:43.7]} 7... O-O {[%clk 0:04:49.4]} 8. c3 {[%clk 0:04:39.9]}
8... d5 {[%clk 0:04:48.4]} 9. exd5 {[%clk 0:04:38.3]} 9... Nxd5 {[%clk
0:04:48.3]} 10. Nxe5 {[%clk 0:04:34.8]} 10... Nxe5 {[%clk 0:04:43.1]} 11. Rxe5
{[%clk 0:04:33.7]} 11... Be6 {[%clk 0:04:28.3]} 12. Qf3 {[%clk 0:04:23.3]} 12...
Bf6 {[%clk 0:04:21.7]} 13. Rxd5 {[%clk 0:04:21.3]} 13... Bxd5 {[%clk 0:04:20.8]}
14. Bxd5 {[%clk 0:04:18.7]} 14... Rc8 {[%clk 0:04:12.5]} 15. d4 {[%clk
0:04:17.4]} 15... c6 {[%clk 0:04:11.3]} 16. Bxc6 {[%clk 0:04:15]} 16... Qc7
{[%clk 0:04:05.5]} 17. Be4 {[%clk 0:04:12]} 17... Rfe8 {[%clk 0:03:53]} 18. Bf4
{[%clk 0:04:08.2]} 18... Qe7 {[%clk 0:03:36.6]} 19. Nd2 {[%clk 0:04:05.5]} 19...
Rc6 {[%clk 0:03:11.2]} 20. Bxc6 {[%clk 0:04:00.3]} 1-0

[Event "Live Chess"]
[Site "Chess.com"]
[Date "2023.05.21"]
[Round "-"]
[White "Long1968"]
[Black "viktorskliarov"]
[Result "0-1"]
[WhiteElo "958"]
[BlackElo "2651"]
[TimeControl "300"]
[EndTime "7:07:22 PDT"]
[Termination "viktorskliarov won on time"]

1. e4 {[%clk 0:04:56.8]} 1... c5 {[%clk 0:04:54]} 2. c3 {[%clk 0:04:54.3]} 2...
d6 {[%clk 0:04:53]} 3. d4 {[%clk 0:04:52.3]} 3... Nf6 {[%clk 0:04:52.4]} 4. dxc5
{[%clk 0:04:42.1]} 4... Nc6 {[%clk 0:04:51.1]} 5. cxd6 {[%clk 0:04:38.2]} 5...
Nxe4 {[%clk 0:04:50]} 6. Bf4 {[%clk 0:04:00.7]} 6... e5 {[%clk 0:04:44.6]} 7.
Bg3 {[%clk 0:03:48.1]} 7... Nxg3 {[%clk 0:04:40.4]} 8. hxg3 {[%clk 0:03:44.4]}
8... Bxd6 {[%clk 0:04:39.3]} 9. Qd3 {[%clk 0:03:25.5]} 9... Qe7 {[%clk
0:04:13.2]} 10. Rxh7 {[%clk 0:03:00.5]} 10... Rxh7 {[%clk 0:04:03.8]} 11. Qxh7
{[%clk 0:02:57.2]} 11... Be6 {[%clk 0:04:00.3]} 12. Qh8+ {[%clk 0:02:45.6]}
12... Qf8 {[%clk 0:03:57.7]} 13. Qxf8+ {[%clk 0:02:39]} 13... Kxf8 {[%clk
0:03:56.7]} 14. Nd2 {[%clk 0:02:31.8]} 14... Bc5 {[%clk 0:03:50]} 15. Ne4 {[%clk
0:02:25.5]} 15... Bb6 {[%clk 0:03:47.7]} 16. b3 {[%clk 0:02:11.3]} 16... f6
{[%clk 0:03:40.8]} 17. Nd6 {[%clk 0:01:31.5]} 17... Ke7 {[%clk 0:03:29]} 18. Rd1
{[%clk 0:01:14]} 18... Rb8 {[%clk 0:03:12.6]} 19. Bb5 {[%clk 0:00:58.8]} 19...
a6 {[%clk 0:03:05.6]} 20. Bxc6 {[%clk 0:00:27.8]} 20... bxc6 {[%clk 0:03:05.5]}
21. Ne4 {[%clk 0:00:17.5]} 21... Bd5 {[%clk 0:02:59.5]} 22. Nd2 {[%clk
0:00:04.4]} 22... Bxg2 {[%clk 0:02:58]} 0-1

[Event "Live Chess"]
[Site "Chess.com"]
[Date "2023.05.21"]
[Round "-"]
[White "Conradical12"]
[Black "elephantgerrald"]
[Result "1-0"]
[WhiteElo "1548"]
[BlackElo "667"]
[TimeControl "300"]
[EndTime "7:07:26 PDT"]
[Termination "Conradical12 won by checkmate"]

1. e4 {[%clk 0:04:57.4]} 1... e6 {[%clk 0:04:58.1]} 2. Nf3 {[%clk 0:04:54.8]}
2... d5 {[%clk 0:04:56.8]} 3. exd5 {[%clk 0:04:53.6]} 3... Qxd5 {[%clk
0:04:55.9]} 4. Nc3 {[%clk 0:04:52]} 4... Qd6 {[%clk 0:04:45.6]} 5. Nb5 {[%clk
0:04:44.8]} 5... Qd5 {[%clk 0:04:39.4]} 6. Nxc7+ {[%clk 0:04:42.7]} 6... Kd7
{[%clk 0:04:37.7]} 7. Nxd5 {[%clk 0:04:42.6]} 7... exd5 {[%clk 0:04:36.6]} 8.
Ne5+ {[%clk 0:04:40.5]} 8... Kd6 {[%clk 0:04:35.4]} 9. Nxf7+ {[%clk 0:04:39.3]}
9... Kc5 {[%clk 0:04:34.6]} 10. Nxh8 {[%clk 0:04:39.2]} 10... Bd7 {[%clk
0:04:32.9]} 11. d4+ {[%clk 0:04:38.8]} 11... Kd6 {[%clk 0:04:31.3]} 12. Bf4+
{[%clk 0:04:38.2]} 12... Kc6 {[%clk 0:04:29.6]} 13. a4 {[%clk 0:04:35.2]} 13...
Na6 {[%clk 0:04:28.3]} 14. Bb5+ {[%clk 0:04:33.6]} 14... Kb6 {[%clk 0:04:26.1]}
15. Bxd7 {[%clk 0:04:27.8]} 15... Rd8 {[%clk 0:04:24.5]} 16. Qd3 {[%clk
0:04:25.7]} 16... Rxd7 {[%clk 0:04:15.5]} 17. Qb5# {[%clk 0:04:25.1]} 1-0

[Event "Live Chess"]
[Site "Chess.com"]
[Date "2023.05.21"]
[Round "-"]
[White "OleksiyJr1"]
[Black "Ian-Morley"]
[Result "1-0"]
[WhiteElo "1035"]
[BlackElo "1077"]
[TimeControl "300"]
[EndTime "7:07:38 PDT"]
[Termination "OleksiyJr1 won by resignation"]

1. e4 {[%clk 0:04:58.2]} 1... g6 {[%clk 0:04:58.7]} 2. Nf3 {[%clk 0:04:56.4]}
2... Bg7 {[%clk 0:04:58.1]} 3. Nc3 {[%clk 0:04:55.2]} 3... d6 {[%clk 0:04:57.6]}
4. d4 {[%clk 0:04:54.8]} 4... Bg4 {[%clk 0:04:56.6]} 5. h3 {[%clk 0:04:53.7]}
5... Bxf3 {[%clk 0:04:55.6]} 6. Qxf3 {[%clk 0:04:53.6]} 6... e5 {[%clk
0:04:55.1]} 7. d5 {[%clk 0:04:52.5]} 7... Qf6 {[%clk 0:04:52.3]} 8. Bd3 {[%clk
0:04:52.4]} 8... Qxf3 {[%clk 0:04:51.2]} 9. gxf3 {[%clk 0:04:51.9]} 9... Nf6
{[%clk 0:04:50.3]} 10. Be3 {[%clk 0:04:51]} 10... O-O {[%clk 0:04:49.7]} 11.
O-O-O {[%clk 0:04:50]} 11... Nbd7 {[%clk 0:04:49.2]} 12. Kb1 {[%clk 0:04:49]}
12... a6 {[%clk 0:04:48.4]} 13. f4 {[%clk 0:04:47.5]} 13... b5 {[%clk
0:04:46.8]} 14. a3 {[%clk 0:04:35.9]} 14... Rab8 {[%clk 0:04:44.6]} 15. fxe5
{[%clk 0:04:33.7]} 15... Nxe5 {[%clk 0:04:43.3]} 16. f4 {[%clk 0:04:31.9]} 16...
Nxd3 {[%clk 0:04:42.3]} 17. Rxd3 {[%clk 0:04:31.8]} 17... a5 {[%clk 0:04:32.7]}
18. Bd4 {[%clk 0:04:28.6]} 18... b4 {[%clk 0:04:30.9]} 19. axb4 {[%clk
0:04:23.4]} 19... axb4 {[%clk 0:04:29.4]} 20. Na2 {[%clk 0:04:22.8]} 20... Nxe4
{[%clk 0:04:25.7]} 21. Re1 {[%clk 0:04:19.5]} 21... Nf2 {[%clk 0:04:21.8]} 22.
Bxf2 {[%clk 0:04:16.3]} 22... Rfe8 {[%clk 0:04:15.8]} 23. Rxe8+ {[%clk
0:04:13.5]} 23... Rxe8 {[%clk 0:04:14.6]} 24. Rb3 {[%clk 0:04:13.1]} 24... Bh6
{[%clk 0:04:06.8]} 25. Bg3 {[%clk 0:04:07.8]} 25... g5 {[%clk 0:04:01.3]} 26.
fxg5 {[%clk 0:04:06.1]} 26... Bxg5 {[%clk 0:04:00.6]} 27. Nxb4 {[%clk
0:04:02.3]} 27... f5 {[%clk 0:03:58.3]} 28. h4 {[%clk 0:03:24.4]} 28... f4
{[%clk 0:03:56.1]} 29. Bf2 {[%clk 0:03:18.6]} 29... Bf6 {[%clk 0:03:49.6]} 30.
Rf3 {[%clk 0:03:11.5]} 30... Be5 {[%clk 0:03:45]} 31. Nd3 {[%clk 0:03:00.4]}
31... Rb8 {[%clk 0:03:41.6]} 32. Nxe5 {[%clk 0:02:58.5]} 32... dxe5 {[%clk
0:03:40.7]} 33. b3 {[%clk 0:02:55]} 33... Kf7 {[%clk 0:03:28.4]} 34. Bc5 {[%clk
0:02:53.2]} 34... Rb5 {[%clk 0:03:18.9]} 35. b4 {[%clk 0:02:50]} 35... h5 {[%clk
0:03:14]} 36. c3 {[%clk 0:02:46.1]} 36... Kg6 {[%clk 0:03:13]} 37. d6 {[%clk
0:02:44.9]} 37... cxd6 {[%clk 0:03:11.8]} 38. Bxd6 {[%clk 0:02:44.2]} 38... Rd5
{[%clk 0:03:08.7]} 39. Bc5 {[%clk 0:02:41.9]} 39... Rd2 {[%clk 0:03:02.4]} 40.
b5 {[%clk 0:02:39.4]} 40... Kf5 {[%clk 0:02:54.6]} 41. b6 {[%clk 0:02:38.2]}
41... e4 {[%clk 0:02:53.7]} 42. Rf1 {[%clk 0:02:34.2]} 42... Rd7 {[%clk
0:02:46.8]} 43. Ka2 {[%clk 0:02:27.9]} 43... e3 {[%clk 0:02:45.8]} 44. Bxe3
{[%clk 0:02:26.5]} 44... Kg4 {[%clk 0:02:35.9]} 45. Rxf4+ {[%clk 0:02:24.5]}
45... Kg3 {[%clk 0:02:33.3]} 46. c4 {[%clk 0:02:17.5]} 46... Rd8 {[%clk
0:02:27.4]} 47. c5 {[%clk 0:02:15.9]} 47... Ra8+ {[%clk 0:02:25.7]} 48. Kb3
{[%clk 0:02:14]} 1-0

[Event "Live Chess"]
[Site "Chess.com"]
[Date "2023.05.21"]
[Round "-"]
[White "AttackingSnowLeopard"]
[Black "elizaveta_frundina"]
[Result "1-0"]
[WhiteElo "2170"]
[BlackElo "1567"]
[TimeControl "300"]
[EndTime "7:07:43 PDT"]
[Termination "AttackingSnowLeopard won by resignation"]

1. c4 {[%clk 0:04:57.2]} 1... g6 {[%clk 0:04:53.7]} 2. Nf3 {[%clk 0:04:57.1]}
2... Bg7 {[%clk 0:04:52.7]} 3. g3 {[%clk 0:04:56.4]} 3... Nf6 {[%clk 0:04:51.9]}
4. Bg2 {[%clk 0:04:56]} 4... c6 {[%clk 0:04:49.3]} 5. O-O {[%clk 0:04:55.3]}
5... O-O {[%clk 0:04:46.6]} 6. d3 {[%clk 0:04:52.5]} 6... d5 {[%clk 0:04:44.8]}
7. Nc3 {[%clk 0:04:51.5]} 7... d4 {[%clk 0:04:42.8]} 8. Nb1 {[%clk 0:04:49.5]}
8... Nbd7 {[%clk 0:04:30.8]} 9. Nbd2 {[%clk 0:04:42.8]} 9... e5 {[%clk
0:04:27.5]} 10. e4 {[%clk 0:04:41.9]} 10... Re8 {[%clk 0:04:22.5]} 11. h3 {[%clk
0:04:39.6]} 11... Nc5 {[%clk 0:04:19.9]} 12. Qe2 {[%clk 0:04:37.8]} 12... h6
{[%clk 0:04:12.8]} 13. Nh2 {[%clk 0:04:30.3]} 13... Kh7 {[%clk 0:04:07.6]} 14.
b4 {[%clk 0:04:27.7]} 14... Na4 {[%clk 0:04:02.9]} 15. Nb3 {[%clk 0:04:17.2]}
15... Nc3 {[%clk 0:04:00.2]} 16. Qd2 {[%clk 0:04:16.8]} 16... Qc7 {[%clk
0:03:47.7]} 17. Bb2 {[%clk 0:04:13.6]} 17... Na4 {[%clk 0:03:40.9]} 18. f4
{[%clk 0:04:05.2]} 18... Nxb2 {[%clk 0:03:34.8]} 19. Qxb2 {[%clk 0:04:03.2]}
19... Nh5 {[%clk 0:03:25.2]} 20. Qf2 {[%clk 0:03:50.8]} 20... exf4 {[%clk
0:03:13.5]} 21. gxf4 {[%clk 0:03:49.3]} 21... f5 {[%clk 0:03:03]} 22. e5 {[%clk
0:03:46]} 22... Be6 {[%clk 0:02:38.4]} 23. Nxd4 {[%clk 0:03:43.7]} 23... Rad8
{[%clk 0:02:35.9]} 24. Nxe6 {[%clk 0:03:42.4]} 24... Rxe6 {[%clk 0:02:33.2]} 25.
d4 {[%clk 0:03:42]} 25... g5 {[%clk 0:02:22.1]} 26. d5 {[%clk 0:03:37.6]} 26...
cxd5 {[%clk 0:02:13.2]} 27. cxd5 {[%clk 0:03:37.5]} 27... Rg6 {[%clk 0:02:10.4]}
28. Rac1 {[%clk 0:03:11.6]} 28... Qe7 {[%clk 0:01:54.3]} 29. d6 {[%clk
0:03:09.7]} 29... Qd7 {[%clk 0:01:44.1]} 30. Rc7 {[%clk 0:03:06.1]} 30... Qb5
{[%clk 0:01:42]} 31. Rxb7 {[%clk 0:02:59.6]} 31... Qa4 {[%clk 0:01:34.6]} 32.
Qxa7 {[%clk 0:02:50.3]} 32... Qxa7+ {[%clk 0:01:30.2]} 33. Rxa7 {[%clk
0:02:50.2]} 33... gxf4 {[%clk 0:01:23.8]} 34. Nf3 {[%clk 0:02:48.6]} 34... Ng3
{[%clk 0:01:09]} 35. Rd1 {[%clk 0:02:39.7]} 35... Ne4 {[%clk 0:00:41.8]} 36. b5
{[%clk 0:02:32.1]} 36... Rc8 {[%clk 0:00:31.2]} 37. Nh4 {[%clk 0:02:22]} 37...
Rg3 {[%clk 0:00:25.1]} 38. Nxf5 {[%clk 0:02:16.8]} 38... Rg5 {[%clk 0:00:19]}
39. Nxg7 {[%clk 0:02:01.3]} 39... Rxg7 {[%clk 0:00:17.3]} 40. Rxg7+ {[%clk
0:01:59.5]} 40... Kxg7 {[%clk 0:00:16.4]} 41. Bxe4 {[%clk 0:01:59.2]} 1-0

[Event "Live Chess"]
[Site "Chess.com"]
[Date "2023.05.21"]
[Round "-"]
[White "Olisingapore"]
[Black "diana21strabt"]
[Result "1-0"]
[WhiteElo "1792"]
[BlackElo "1756"]
[TimeControl "300"]
[EndTime "7:07:44 PDT"]
[Termination "Olisingapore won by resignation"]

1. d4 {[%clk 0:04:57.4]} 1... Nf6 {[%clk 0:04:58.8]} 2. c4 {[%clk 0:04:55.9]}
2... g6 {[%clk 0:04:58]} 3. g3 {[%clk 0:04:54.8]} 3... Bg7 {[%clk 0:04:57.1]} 4.
Bg2 {[%clk 0:04:54.3]} 4... O-O {[%clk 0:04:55.8]} 5. Nf3 {[%clk 0:04:53.8]}
5... c6 {[%clk 0:04:55.2]} 6. O-O {[%clk 0:04:53.5]} 6... d5 {[%clk 0:04:54.6]}
7. Nc3 {[%clk 0:04:53.1]} 7... e6 {[%clk 0:04:53.4]} 8. Re1 {[%clk 0:04:51.9]}
8... Nbd7 {[%clk 0:04:52]} 9. Qb3 {[%clk 0:04:51.6]} 9... Qb6 {[%clk 0:04:50]}
10. c5 {[%clk 0:04:50.9]} 10... Qxb3 {[%clk 0:04:48.8]} 11. axb3 {[%clk
0:04:50.8]} 11... b6 {[%clk 0:04:47.7]} 12. cxb6 {[%clk 0:04:29.5]} 12... Nxb6
{[%clk 0:04:40.2]} 13. Bf4 {[%clk 0:04:28.7]} 13... Rd8 {[%clk 0:04:32.8]} 14.
Bc7 {[%clk 0:04:24.9]} 14... Bd7 {[%clk 0:04:12.9]} 15. Bxd8 {[%clk 0:04:21.5]}
15... Rxd8 {[%clk 0:04:11.6]} 16. Rxa7 {[%clk 0:04:18.8]} 16... Nc8 {[%clk
0:04:06.3]} 17. Ne5 {[%clk 0:04:15.3]} 17... Nd6 {[%clk 0:04:04]} 18. Rea1
{[%clk 0:03:47.6]} 18... Be8 {[%clk 0:03:57.7]} 19. Ra8 {[%clk 0:03:44.8]} 19...
Rxa8 {[%clk 0:03:50.8]} 20. Rxa8 {[%clk 0:03:44.7]} 20... Kf8 {[%clk 0:03:49.8]}
21. Na4 {[%clk 0:03:37.8]} 21... Ke7 {[%clk 0:03:46.9]} 22. Nc5 {[%clk
0:03:36.2]} 22... Nfe4 {[%clk 0:03:40.8]} 23. Ra7+ {[%clk 0:03:33.1]} 23... Kf8
{[%clk 0:03:38.6]} 24. Ncd7+ {[%clk 0:03:25.3]} 24... Kg8 {[%clk 0:03:32.3]} 25.
Bxe4 {[%clk 0:03:17.2]} 25... Nxe4 {[%clk 0:03:30.6]} 26. Nxc6 {[%clk
0:03:08.2]} 26... Bxd7 {[%clk 0:03:25.8]} 27. Rxd7 {[%clk 0:03:05.9]} 27... Nd2
{[%clk 0:03:19.3]} 28. Rd8+ {[%clk 0:02:58.4]} 28... Bf8 {[%clk 0:03:17.5]} 29.
b4 {[%clk 0:02:50.7]} 29... Kg7 {[%clk 0:03:15.4]} 30. b5 {[%clk 0:02:47.1]}
30... Nc4 {[%clk 0:03:13.8]} 31. Ne5 {[%clk 0:02:39.1]} 31... Nxe5 {[%clk
0:03:06.4]} 32. dxe5 {[%clk 0:02:37.6]} 32... Be7 {[%clk 0:03:05.2]} 33. Rd7
{[%clk 0:02:36.6]} 33... Bc5 {[%clk 0:03:03.8]} 34. Rc7 {[%clk 0:02:34.7]} 34...
Bd4 {[%clk 0:03:02.5]} 35. Rc6 {[%clk 0:02:28.7]} 35... Bxe5 {[%clk 0:03:00.9]}
36. b6 {[%clk 0:02:27.5]} 36... Bxb2 {[%clk 0:02:59.4]} 37. b7 {[%clk
0:02:26.7]} 37... Be5 {[%clk 0:02:58]} 38. Rc8 {[%clk 0:02:23.8]} 38... h5
{[%clk 0:02:56.8]} 39. b8=Q {[%clk 0:02:22.1]} 39... Bxb8 {[%clk 0:02:55.6]} 40.
Rxb8 {[%clk 0:02:22]} 40... Kf6 {[%clk 0:02:54.6]} 41. Kg2 {[%clk 0:02:20.1]}
41... e5 {[%clk 0:02:53.7]} 42. Rb6+ {[%clk 0:02:18]} 42... Kg5 {[%clk
0:02:52.5]} 43. Kf3 {[%clk 0:02:15.9]} 43... f5 {[%clk 0:02:51.4]} 44. h4+
{[%clk 0:02:14.6]} 44... Kh6 {[%clk 0:02:49.4]} 45. Rb5 {[%clk 0:02:13]} 1-0

[Event "Live Chess"]
[Site "Chess.com"]
[Date "2023.05.21"]
[Round "-"]
[White "CheckThis4"]
[Black "Tushinskiy"]
[Result "1-0"]
[WhiteElo "2526"]
[BlackElo "2219"]
[TimeControl "300"]
[EndTime "7:07:53 PDT"]
[Termination "CheckThis4 won by resignation"]

1. d4 {[%clk 0:04:58.4]} 1... d5 {[%clk 0:04:57.5]} 2. Nc3 {[%clk 0:04:57.2]}
2... c6 {[%clk 0:04:57.4]} 3. e4 {[%clk 0:04:56.2]} 3... dxe4 {[%clk 0:04:56.5]}
4. Nxe4 {[%clk 0:04:56.1]} 4... Nf6 {[%clk 0:04:56]} 5. Nxf6+ {[%clk 0:04:54.6]}
5... gxf6 {[%clk 0:04:55.9]} 6. Nf3 {[%clk 0:04:50.7]} 6... Bf5 {[%clk
0:04:53.9]} 7. g3 {[%clk 0:04:49.2]} 7... Nd7 {[%clk 0:04:50.6]} 8. Bg2 {[%clk
0:04:48.1]} 8... Bg6 {[%clk 0:04:49]} 9. O-O {[%clk 0:04:46.9]} 9... h5 {[%clk
0:04:46]} 10. Nh4 {[%clk 0:04:36]} 10... Bg7 {[%clk 0:04:40]} 11. c3 {[%clk
0:04:34.7]} 11... Qc7 {[%clk 0:04:38]} 12. Re1 {[%clk 0:04:30.4]} 12... Kf8
{[%clk 0:04:31.9]} 13. Bf4 {[%clk 0:03:59.8]} 13... e5 {[%clk 0:04:30.3]} 14.
dxe5 {[%clk 0:03:57.2]} 14... fxe5 {[%clk 0:04:30.2]} 15. Be3 {[%clk 0:03:50]}
15... Kg8 {[%clk 0:04:28.5]} 16. Nxg6 {[%clk 0:03:44]} 16... fxg6 {[%clk
0:04:27.1]} 17. Be4 {[%clk 0:03:43.6]} 17... Nf8 {[%clk 0:04:20.1]} 18. Qe2
{[%clk 0:03:29.6]} 18... h4 {[%clk 0:04:16.4]} 19. Rad1 {[%clk 0:03:23.9]} 19...
Qf7 {[%clk 0:04:15]} 20. Bc2 {[%clk 0:03:18.5]} 20... Ne6 {[%clk 0:04:08.4]} 21.
Qg4 {[%clk 0:03:14.1]} 21... Re8 {[%clk 0:04:03.8]} 22. Bxg6 {[%clk 0:03:10]}
22... Qe7 {[%clk 0:04:02.8]} 23. Bxe8 {[%clk 0:03:07.4]} 23... Qxe8 {[%clk
0:04:02.7]} 24. Rd6 {[%clk 0:03:02.8]} 24... Nf8 {[%clk 0:03:58.4]} 25. Red1
{[%clk 0:02:57.9]} 25... hxg3 {[%clk 0:03:55.6]} 26. hxg3 {[%clk 0:02:56.4]}
26... Qf7 {[%clk 0:03:47]} 27. Rd8 {[%clk 0:02:51.7]} 27... Qh5 {[%clk
0:03:43.7]} 28. Qxh5 {[%clk 0:02:47.3]} 1-0